Workbook

Sheet Simulador
G5: SIMULADOR CRÉDITO INSTITUCIONAL
C8: Por favor diligenciar los campos en Verde:
C10: CONCEPTOS | D10: VALOR | G10: AMORTIZACIÓN
C11: VALOR TOTAL MATRÍCULA: | D11: 10000000 | G11: # CUOTAS | H11: VALOR CUOTA FIJA MENSUAL | I11: ABONO A CAPITAL | J11: INTERÉS CORRIENTE | K11: SALDO CAPITAL
C12: % CUOTA INICIAL: | D12: 0.5 | G12: CUOTA INICIAL | H12: =+D14 -> 5000000 | I12: =+H12 -> 5000000 | J12: 0 | K12: =+D16 -> 5000000
C13: NÚMERO DE CUOTAS: | D13: 5 | G13: 1 | H13: =IF($G13<=$D$13,ABS(PMT($D$15,$D$13,$D$16)),0) -> 1022915.08 | I13: =IFERROR(H13-J13,0) -> 984915.0804 | J13: =IFERROR(ABS(IPMT($D$15,$G13,$D$13,$D$16)),0) -> 38000 | K13: =IFERROR(+K12-I13,0) -> 4015084.92
C14: VALOR CUOTA INICIAL | D14: =D12*D11 -> 5000000 | G14: 2 | H14: =IF($G14<=$D$13,ABS(PMT($D$15,$D$13,$D$16)),0) -> 1022915.08 | I14: =IFERROR(H14-J14,0) -> 992400.435 | J14: =IFERROR(ABS(IPMT($D$15,$G14,$D$13,$D$16)),0) -> 30514.64539 | K14: =IFERROR(+K13-I14,0) -> 3022684.485
C15: INTERÉS CORRIENTE N.M.V | D15: 0.0076 | G15: 3 | H15: 1022915.08 | I15: =IFERROR(H15-J15,0) -> 999942.6783 | J15: =IFERROR(ABS(IPMT($D$15,$G15,$D$13,$D$16)),0) -> 22972.40208 | K15: 2022741.806
C16: VALOR A FINANCIAR | D16: =D11-D14 -> 5000000 | G16: 4 | H16: 1022915.08 | I16: =IFERROR(H16-J16,0) -> 1007542.243 | J16: =IFERROR(ABS(IPMT($D$15,$G16,$D$13,$D$16)),0) -> 15372.83773 | K16: =IFERROR(+K15-I16,0) -> 1015199.564
C17: CUOTAS FIJA MENSUAL | D17: =ABS(PMT(D15,D13,D16)) -> 1022915.08 | G17: 5 | H17: 1022915.08 | I17: 1015199.564 | J17: 7715.516684 | K17: -1.28056854e-09
G18: VALOR DE LA CUOTA CON INTERÉS: | H18: =SUM(H12:H17) -> 10114575.4 | I18: =SUM(I12:I17) -> 10000000 | J18: =SUM(J12:J17) -> 114575.4019
C20: Tener en cuenta
C21: El cálculo presentado es resultado de una simulación, es aproximado e informativo y puede presentar variaciones. Este resultado no compromete a la universidad, ni constituye una asesoría.

Sheet Configuracion (hidden)
B4: % Cuota Inicial | D4: # de cuotas
B5: 0.2 | D5: 1
B6: 0.25 | D6: 2
B7: 0.3 | D7: 3
B8: 0.35 | D8: 4
B9: 0.4 | D9: 5
B10: 0.45
B11: 0.5
B12: 0.55
B13: 0.6
B14: 0.65
B15: 0.7
B16: 0.75
B17: 0.8
